[Event "GER-ch Youth U12W 2020"]
[Site "Willingen"]
[Date "2020.10.29"]
[Round "4.5"]
[White "Siegel, Irene"]
[Black "Fischer, Juliane"]
[Result "0-1"]
[ECO "B22"]
[WhiteElo "1380"]
[BlackElo "1509"]
[Annotator "NA RC"]
[PlyCount "74"]
[EventDate "2020.10.27"]
[EventType "swiss"]
[EventRounds "7"]
[EventCountry "GER"]
[SourceTitle "playchess.com"]
[Source "ChessBase"]
[SourceQuality "1"]
[TimeControl "40/5400+30:1800+30"]

1. e4 {[%emt 0:00:00]} c5 {[%emt 0:00:00]} 2. c3 {[%emt 0:00:00]} d5 {[%emt 0:00:00]} 3. e5 {[%emt 0:00:00]} Nc6 {[%emt 0:01:32]} 4. d4 {[%emt 0:00:34]} cxd4 {[%emt 0:02:06]} 5. cxd4 {[%emt 0:00:38]} Bf5 {[%emt 0:02:38]} 6. Nf3 {[%emt 0:02:26]} e6 {[%emt 0:03:29]} 7. a3 {[%emt 0:03:05]} Nge7 {[%emt 0:05:15]} 8. Be2 {[%emt 0:06:53]} Bg6 {[%emt 0:05:07]} 9. Bg5 {[%emt 0:04:56]} Qb6 {[%emt 0:04:06]} 10. b4 {[%emt 0:07:01]} Nf5 {[%emt 0:02:29]} 11. Be3 {[%emt 0:01:02]} a6 {[%emt 0:05:36]} 12. Nc3 {[%emt 0:03:11]} Be7 {[%emt 0:03:40]} 13. g4 {[%emt 0:05:39]} Nxe3 {[%emt 0:05:24]} 14. fxe3 {[%emt 0:00:33]} Nxb4 {[%emt 0:08:53]} 15. axb4 {[%emt 0:06:10]} Bxb4 {[%emt 0:00:12]} 16. Rc1 {[%emt 0:00:13]} Rc8 {[%emt 0:00:14]} 17. Qa4+ {[%emt 0:02:33]} Ke7 {[%emt 0:02:09]} 18. Qb3 {[%emt 0:02:00]} Rxc3 {[%emt 0:06:20]} 19. Rxc3 {[%emt 0:01:29]} Rc8 {[%emt 0:00:14]} 20. O-O {[%emt 0:05:38]} Rxc3 {[%emt 0:00:28]} 21. Qb2 {[%emt 0:02:29]} Rc2 {[%emt 0:00:39]} 22. Qb3 {[%emt 0:02:01]} Rxe2 {[%emt 0:01:01]} 23. Ng5 {[%emt 0:10:00]} Ba5 {[%emt 0:03:32]} 24. Qa3+ {[%emt 0:02:12]} Qb4 {[%emt 0:00:39]} 25. Qc1 {[%emt 0:02:27]} Qc3 {[%emt 0:02:07]} 26. Qxc3 {[%emt 0:05:11]} Bxc3 {[%emt 0:00:09]} 27. Rc1 {[%emt 0:00:42]} Re1+ {[%emt 0:00:24]} 28. Rxe1 {[%emt 0:00:06]} Bxe1 {[%emt 0:00:06]} 29. Nf3 {[%emt 0:00:31]} Ba5 {[%emt 0:00:27]} 30. Kf2 {[%emt 0:01:17]} Be4 {[%emt 0:00:20]} 31. Ke2 {[%emt 0:00:43]} Bxf3+ {[%emt 0:00:07]} 32. Kxf3 {[%emt 0:00:06]} b5 {[%emt 0:00:20]} 33. Ke2 {[%emt 0:00:12]} Bc3 {[%emt 0:00:07]} 34. Kd1 {[%emt 0:00:20]} b4 {[%emt 0:00:13]} 35. Kc2 {[%emt 0:00:06]} f6 {[%emt 0:00:23]} 36. exf6+ {[%emt 0:00:39]} Kxf6 {[%emt 0:00:14]} 37. h3 {[%emt 0:00:12]} Kg5 {[%emt 0:00:18]} 0-1

[Event "GER-ch Youth U12W 2020"]
[Site "Willingen"]
[Date "2020.10.29"]
[Round "4.6"]
[White "Rodermel, Leonie"]
[Black "Haug, Mara"]
[Result "0-1"]
[ECO "B72"]
[WhiteElo "1370"]
[BlackElo "1366"]
[Annotator "NA RC"]
[PlyCount "100"]
[EventDate "2020.10.27"]
[EventType "swiss"]
[EventRounds "7"]
[EventCountry "GER"]
[SourceTitle "playchess.com"]
[Source "ChessBase"]
[SourceQuality "1"]
[TimeControl "40/5400+30:1800+30"]

1. e4 {[%emt 0:00:00]} c5 {[%emt 0:00:00]} 2. Nf3 {[%emt 0:00:00]} Nc6 {[%emt 0:00:00]} 3. d4 {[%emt 0:00:00]} cxd4 {[%emt 0:00:00]} 4. Nxd4 {[%emt 0:00:00]} g6 {[%emt 0:00:03]} 5. Nc3 {[%emt 0:00:31]} Bg7 {[%emt 0:00:12]} 6. Be3 {[%emt 0:00:16]} Nf6 {[%emt 0:00:11]} 7. Be2 {[%emt 0:01:15]} d6 {[%emt 0:01:39]} 8. Nb3 {[%emt 0:06:19]} Bd7 {[%emt 0:02:40]} 9. O-O {[%emt 0:03:32]} O-O {[%emt 0:04:50]} 10. Kh1 {[%emt 0:02:49]} Ne5 {[%emt 0:07:13]} 11. f3 {[%emt 0:08:29]} a6 {[%emt 0:09:00]} 12. a4 {[%emt 0:03:42]} Rc8 {[%emt 0:03:03]} 13. Nd2 {[%emt 0:04:28]} Be6 {[%emt 0:04:07]} 14. Ncb1 {[%emt 0:08:28]} d5 {[%emt 0:04:24]} 15. exd5 {[%emt 0:10:40]} Nxd5 {[%emt 0:04:21]} 16. Bf2 {[%emt 0:08:09]} Qc7 {[%emt 0:06:54]} 17. Na3 {[%emt 0:07:01]} Rfd8 {[%emt 0:10:10]} 18. c3 {[%emt 0:11:57]} Nf4 {[%emt 0:01:56]} 19. Bd4 {[%emt 0:03:38]} Bh6 {[%emt 0:03:58]} 20. a5 {[%emt 0:05:16]} Qb8 {[%emt 0:09:00]} 21. g3 {[%emt 0:04:38]} Nfd3 {[%emt 0:07:14]} 22. Bxe5 {[%emt 0:03:21]} Qxe5 {[%emt 0:00:38]} 23. Bxd3 {[%emt 0:01:51]} Rxd3 {[%emt 0:00:39]} 24. Rf2 {[%emt 0:00:51]} Rcd8 {[%emt 0:01:24]} 25. f4 {[%emt 0:00:32]} Qd5+ {[%emt 0:01:06]} 26. Kg1 {[%emt 0:00:15]} Rxd2 {[%emt 0:00:19]} 27. Rxd2 {[%emt 0:00:04]} Qxd2 {[%emt 0:00:08]} 28. Qxd2 {[%emt 0:00:57]} Rxd2 {[%emt 0:00:09]} 29. b4 {[%emt 0:00:05]} Bg7 {[%emt 0:01:00]} 30. Rc1 {[%emt 0:00:21]} Rd3 {[%emt 0:00:49]} 31. Nb1 {[%emt 0:00:20]} Ba2 {[%emt 0:01:14]} 32. c4 {[%emt 0:00:20]} Bd4+ {[%emt 0:02:07]} 33. Kf1 {[%emt 0:00:26]} Bb2 {[%emt 0:04:12]} 34. Re1 {[%emt 0:02:16]} Bxc4 {[%emt 0:00:51]} 35. Kg2 {[%emt 0:01:31]} Kf8 {[%emt 0:02:01]} 36. Rf1 {[%emt 0:01:32]} Rb3 {[%emt 0:01:16]} 37. Nd2 {[%emt 0:00:35]} Bxf1+ {[%emt 0:00:11]} 38. Kxf1 {[%emt 0:00:07]} Rxb4 {[%emt 0:00:10]} 39. Ke2 {[%emt 0:00:17]} Ra4 {[%emt 0:01:13]} 40. Kd3 {[%emt 0:00:07]} Rxa5 {[%emt 0:00:32]} 41. Nc4 {[%emt 0:30:15]} Rd5+ {[%emt 0:30:15]} 42. Kc2 {[%emt 0:00:06]} Rc5 {[%emt 0:00:32]} 43. Kb3 {[%emt 0:00:12]} Bd4 {[%emt 0:00:30]} 44. Kb4 {[%emt 0:00:24]} Rb5+ {[%emt 0:01:21]} 45. Ka3 {[%emt 0:00:15]} Ke8 {[%emt 0:01:00]} 46. h3 {[%emt 0:00:13]} Kd7 {[%emt 0:00:08]} 47. g4 {[%emt 0:00:15]} Kc6 {[%emt 0:00:17]} 48. Ka4 {[%emt 0:00:53]} Kc5 {[%emt 0:00:49]} 49. Na3 {[%emt 0:00:26]} Rb2 {[%emt 0:01:46]} 50. f5 {[%emt 0:00:39]} b6 {[%emt 0:00:32]} 0-1

[Event "GER-ch Youth U12W 2020"]
[Site "Willingen"]
[Date "2020.10.29"]
[Round "4.7"]
[White "Bakó, Evelin"]
[Black "Schwenke, Mia"]
[Result "1/2-1/2"]
[ECO "C75"]
[WhiteElo "1192"]
[BlackElo "1265"]
[Annotator "NA RC"]
[PlyCount "57"]
[EventDate "2020.10.27"]
[EventType "swiss"]
[EventRounds "7"]
[EventCountry "GER"]
[SourceTitle "playchess.com"]
[Source "ChessBase"]
[SourceQuality "1"]
[TimeControl "40/5400+30:1800+30"]

1. e4 {[%emt 0:00:00]} e5 {[%emt 0:00:00]} 2. Nf3 {[%emt 0:00:00]} Nc6 {[%emt 0:00:00]} 3. Bb5 {[%emt 0:00:31]} a6 {[%emt 0:00:01]} 4. Ba4 {[%emt 0:00:06]} d6 {[%emt 0:00:06]} 5. c3 {[%emt 0:00:24]} Bd7 {[%emt 0:02:47]} 6. O-O {[%emt 0:01:16]} g6 {[%emt 0:00:31]} 7. d3 {[%emt 0:01:06]} Bg7 {[%emt 0:00:18]} 8. Re1 {[%emt 0:01:09]} b5 {[%emt 0:00:36]} 9. Bb3 {[%emt 0:00:27]} Nf6 {[%emt 0:00:25]} 10. Nbd2 {[%emt 0:01:31]} O-O {[%emt 0:00:51]} 11. Nf1 {[%emt 0:04:38]} Nh5 {[%emt 0:08:39]} 12. Ne3 {[%emt 0:03:19]} Kh8 {[%emt 0:06:34]} 13. Nd5 {[%emt 0:01:03]} Ne7 {[%emt 0:01:56]} 14. d4 {[%emt 0:03:38]} Nxd5 {[%emt 0:01:47]} 15. Bxd5 {[%emt 0:00:28]} c6 {[%emt 0:00:47]} 16. Bb3 {[%emt 0:00:59]} Qe7 {[%emt 0:01:45]} 17. Be3 {[%emt 0:09:22]} f5 {[%emt 0:04:29]} 18. dxe5 {[%emt 0:01:54]} dxe5 {[%emt 0:02:00]} 19. exf5 {[%emt 0:00:24]} Bxf5 {[%emt 0:00:48]} 20. Bg5 {[%emt 0:00:21]} Qe8 {[%emt 0:09:44]} 21. Qd2 {[%emt 0:03:20]} c5 {[%emt 0:02:21]} 22. h3 {[%emt 0:02:23]} c4 {[%emt 0:04:29]} 23. Bd1 {[%emt 0:03:09]} Bd3 {[%emt 0:03:02]} 24. Be2 {[%emt 0:06:08]} Bxe2 {[%emt 0:14:42]} 25. Rxe2 {[%emt 0:00:15]} Nf4 {[%emt 0:05:50]} 26. Bxf4 {[%emt 0:00:27]} Rxf4 {[%emt 0:00:08]} 27. Rae1 {[%emt 0:00:29]} Rf5 {[%emt 0:01:49]} 28. Nd4 {[%emt 0:01:56]} Rd8 {[%emt 0:04:03]} 29. Qc2 {[%emt 0:01:00]} 1/2-1/2

[Event "GER-ch Youth U12W 2020"]
[Site "Willingen"]
[Date "2020.10.29"]
[Round "4.8"]
[White "Glotz, Diana"]
[Black "Arnold, Rubina"]
[Result "0-1"]
[ECO "A10"]
[WhiteElo "1098"]
[BlackElo "1414"]
[Annotator "NA RC"]
[PlyCount "71"]
[EventDate "2020.10.27"]
[EventType "swiss"]
[EventRounds "7"]
[EventCountry "GER"]
[SourceTitle "playchess.com"]
[Source "ChessBase"]
[SourceQuality "1"]
[TimeControl "40/5400+30:1800+30"]

1. c4 {[%emt 0:00:00]} f5 {[%emt 0:00:00]} 2. Nc3 {[%emt 0:00:00]} Nf6 {[%emt 0:00:00]} 3. g3 {[%emt 0:00:21]} g6 {[%emt 0:00:00]} 4. Bg2 {[%emt 0:00:15]} Bg7 {[%emt 0:00:07]} 5. e3 {[%emt 0:01:01]} O-O {[%emt 0:00:08]} 6. Nge2 {[%emt 0:00:20]} d6 {[%emt 0:00:19]} 7. d4 {[%emt 0:02:16]} c6 {[%emt 0:00:08]} 8. b4 {[%emt 0:05:56]} Bd7 {[%emt 0:03:47]} 9. b5 {[%emt 0:03:29]} Qc7 {[%emt 0:04:47]} 10. O-O {[%emt 0:04:36]} Be8 {[%emt 0:05:50]} 11. Bb2 {[%emt 0:03:45]} Bf7 {[%emt 0:02:41]} 12. bxc6 {[%emt 0:12:08]} Nxc6 {[%emt 0:02:48]} 13. d5 {[%emt 0:02:23]} Ne5 {[%emt 0:05:33]} 14. Qc2 {[%emt 0:15:39]} Qxc4 {[%emt 0:02:37]} 15. Rfd1 {[%emt 0:01:17]} b5 {[%emt 0:04:11]} 16. Rd4 {[%emt 0:06:21]} Qc5 {[%emt 0:00:46]} 17. Qb3 {[%emt 0:03:25]} a6 {[%emt 0:03:33]} 18. Nf4 {[%emt 0:04:00]} Rac8 {[%emt 0:02:20]} 19. Qb4 {[%emt 0:06:29]} Qxb4 {[%emt 0:05:40]} 20. Rxb4 {[%emt 0:00:10]} g5 {[%emt 0:00:31]} 21. Ne6 {[%emt 0:01:07]} Bxe6 {[%emt 0:00:12]} 22. dxe6 {[%emt 0:00:05]} Nd3 {[%emt 0:00:21]} 23. Rb3 {[%emt 0:01:14]} Nxb2 {[%emt 0:00:23]} 24. Rxb2 {[%emt 0:00:06]} Rxc3 {[%emt 0:00:08]} 25. Re2 {[%emt 0:00:44]} Rfc8 {[%emt 0:00:59]} 26. Bb7 {[%emt 0:01:09]} Rc1+ {[%emt 0:00:15]} 27. Rxc1 {[%emt 0:00:04]} Rxc1+ {[%emt 0:00:10]} 28. Kg2 {[%emt 0:00:05]} a5 {[%emt 0:00:26]} 29. Rd2 {[%emt 0:01:48]} Rc7 {[%emt 0:01:53]} 30. Ba6 {[%emt 0:00:56]} b4 {[%emt 0:00:25]} 31. Be2 {[%emt 0:01:05]} Ne4 {[%emt 0:02:10]} 32. Rd3 {[%emt 0:02:16]} Rc2 {[%emt 0:00:22]} 33. Kf1 {[%emt 0:01:58]} Nc3 {[%emt 0:02:47]} 34. Bd1 {[%emt 0:00:47]} Nxd1 {[%emt 0:00:11]} 35. Rxd1 {[%emt 0:00:10]} Rxa2 {[%emt 0:00:07]} 36. Rd5 {[%emt 0:00:41]} 0-1

[Event "GER-ch Youth U12W 2020"]
[Site "Willingen"]
[Date "2020.10.29"]
[Round "4.9"]
[White "Moldovan, Stela"]
[Black "Petrosyan, Ani"]
[Result "1-0"]
[ECO "B21"]
[WhiteElo "1219"]
[BlackElo "1370"]
[Annotator "NA RC"]
[PlyCount "107"]
[EventDate "2020.10.27"]
[EventType "swiss"]
[EventRounds "7"]
[EventCountry "GER"]
[SourceTitle "playchess.com"]
[Source "ChessBase"]
[SourceQuality "1"]
[TimeControl "40/5400+30:1800+30"]

1. e4 {[%emt 0:00:00]} c5 {[%emt 0:00:00]} 2. d4 {[%emt 0:00:00]} cxd4 {[%emt 0:00:00]} 3. c3 {[%emt 0:00:02]} dxc3 {[%emt 0:00:00]} 4. Nxc3 {[%emt 0:00:07]} e6 {[%emt 0:00:00]} 5. Bc4 {[%emt 0:00:59]} a6 {[%emt 0:00:08]} 6. Nf3 {[%emt 0:00:09]} b5 {[%emt 0:00:09]} 7. Bb3 {[%emt 0:00:04]} Bb7 {[%emt 0:01:46]} 8. O-O {[%emt 0:00:31]} b4 {[%emt 0:01:09]} 9. Ne2 {[%emt 0:00:42]} Bxe4 {[%emt 0:00:16]} 10. Ng3 {[%emt 0:00:09]} Nf6 {[%emt 0:00:20]} 11. Bg5 {[%emt 0:00:19]} Bb7 {[%emt 0:01:12]} 12. Nh5 {[%emt 0:00:42]} d5 {[%emt 0:02:12]} 13. Re1 {[%emt 0:01:21]} Nbd7 {[%emt 0:04:33]} 14. Ba4 {[%emt 0:01:03]} Qb6 {[%emt 0:10:23]} 15. Bxf6 {[%emt 0:01:08]} gxf6 16. Nxf6+ {[%emt 0:00:14]} Ke7 {[%emt 0:02:36]} 17. Nxd7 {[%emt 0:00:09]} Qd6 {[%emt 0:01:13]} 18. Nde5 {[%emt 0:01:06]} Bg7 {[%emt 0:01:56]} 19. Rb1 {[%emt 0:00:13]} Rhg8 {[%emt 0:00:24]} 20. h3 {[%emt 0:03:01]} Rad8 {[%emt 0:01:23]} 21. Ng4 {[%emt 0:00:55]} h5 {[%emt 0:01:57]} 22. Ngh2 {[%emt 0:01:32]} Bf6 {[%emt 0:07:06]} 23. Bc2 {[%emt 0:01:42]} d4 {[%emt 0:08:10]} 24. Be4 {[%emt 0:00:30]} Bc8 {[%emt 0:05:07]} 25. Bd3 {[%emt 0:01:07]} e5 {[%emt 0:01:14]} 26. Kh1 {[%emt 0:00:13]} Qd5 {[%emt 0:01:44]} 27. Qd2 {[%emt 0:00:22]} a5 {[%emt 0:02:15]} 28. Bf1 {[%emt 0:00:35]} Rd6 {[%emt 0:01:22]} 29. Nxe5 {[%emt 0:00:44]} Bxe5 {[%emt 0:03:20]} 30. Rxe5+ {[%emt 0:00:09]} Qxe5 {[%emt 0:03:37]} 31. Re1 {[%emt 0:00:30]} Qxe1 {[%emt 0:00:03]} 32. Qxe1+ {[%emt 0:00:08]} Re6 {[%emt 0:00:24]} 33. Qd1 {[%emt 0:00:24]} Rd8 {[%emt 0:01:40]} 34. Qxh5 {[%emt 0:00:40]} d3 {[%emt 0:01:14]} 35. Qg5+ {[%emt 0:00:47]} Rf6 {[%emt 0:02:00]} 36. Nf3 {[%emt 0:00:15]} Rdd6 {[%emt 0:02:19]} 37. Qe3+ {[%emt 0:00:56]} Rfe6 {[%emt 0:00:23]} 38. Qd2 {[%emt 0:02:07]} Ba6 {[%emt 0:01:17]} 39. Ne1 {[%emt 0:00:13]} Ke8 {[%emt 0:03:54]} 40. Nxd3 Kf8 {[%emt 0:04:07]} 41. Qc2 {[%emt 0:31:17]} Rc6 {[%emt 0:30:46]} 42. Qb1 {[%emt 0:00:44]} Red6 {[%emt 0:01:37]} 43. Nf4 {[%emt 0:00:52]} Bxf1 {[%emt 0:01:45]} 44. Qxf1 {[%emt 0:00:07]} Rd4 {[%emt 0:00:10]} 45. Ne2 {[%emt 0:00:27]} Rd2 {[%emt 0:00:12]} 46. Ng3 {[%emt 0:00:19]} Rcd6 {[%emt 0:00:15]} 47. Kh2 {[%emt 0:02:22]} Ke7 {[%emt 0:00:50]} 48. Ne4 {[%emt 0:00:11]} Rd1 {[%emt 0:00:26]} 49. Qe2 {[%emt 0:00:09]} Re6 {[%emt 0:03:24]} 50. Qxd1 {[%emt 0:00:11]} Rxe4 {[%emt 0:00:07]} 51. f3 {[%emt 0:00:25]} Re5 {[%emt 0:00:14]} 52. h4 {[%emt 0:00:28]} f5 {[%emt 0:00:16]} 53. Qd4 {[%emt 0:00:27]} Kf6 {[%emt 0:00:35]} 54. f4 {[%emt 0:00:11]} 1-0

[Event "GER-ch Youth U12W 2020"]
[Site "Willingen"]
[Date "2020.10.29"]
[Round "4.10"]
[White "Fock, Madiha"]
[Black "Pröttel, Ela"]
[Result "1/2-1/2"]
[ECO "C02"]
[WhiteElo "1258"]
[BlackElo "1229"]
[Annotator "NA RC"]
[PlyCount "91"]
[EventDate "2020.10.27"]
[EventType "swiss"]
[EventRounds "7"]
[EventCountry "GER"]
[SourceTitle "playchess.com"]
[Source "ChessBase"]
[SourceQuality "1"]
[TimeControl "40/5400+30:1800+30"]

1. e4 {[%emt 0:00:00]} e6 {[%emt 0:00:00]} 2. d4 {[%emt 0:00:00]} d5 {[%emt 0:00:00]} 3. e5 {[%emt 0:00:00]} c5 {[%emt 0:00:00]} 4. c3 {[%emt 0:00:21]} Nc6 {[%emt 0:00:20]} 5. Nf3 {[%emt 0:00:58]} Qb6 {[%emt 0:00:17]} 6. Be2 {[%emt 0:00:47]} cxd4 {[%emt 0:00:40]} 7. cxd4 {[%emt 0:00:26]} Nh6 {[%emt 0:01:14]} 8. Nc3 {[%emt 0:06:03]} Nf5 {[%emt 0:01:37]} 9. Bb5 {[%emt 0:00:29]} Bd7 {[%emt 0:01:42]} 10. Bxc6 {[%emt 0:01:44]} Bxc6 {[%emt 0:00:11]} 11. O-O {[%emt 0:01:25]} Be7 {[%emt 0:01:53]} 12. Ne2 {[%emt 0:07:15]} Bb5 {[%emt 0:04:47]} 13. Re1 {[%emt 0:00:46]} Bxe2 {[%emt 0:00:41]} 14. Rxe2 {[%emt 0:00:23]} O-O {[%emt 0:12:42]} 15. Qd3 {[%emt 0:10:59]} Nh4 {[%emt 0:21:11]} 16. Nxh4 {[%emt 0:03:54]} Bxh4 {[%emt 0:00:14]} 17. g3 {[%emt 0:01:09]} Be7 {[%emt 0:00:36]} 18. Bf4 {[%emt 0:12:32]} Rac8 {[%emt 0:02:00]} 19. Kg2 {[%emt 0:04:47]} Rc4 {[%emt 0:03:28]} 20. Be3 {[%emt 0:02:50]} Rfc8 {[%emt 0:03:57]} 21. h4 {[%emt 0:02:19]} Qc7 {[%emt 0:01:02]} 22. Bd2 {[%emt 0:10:56]} Bb4 {[%emt 0:04:00]} 23. b3 {[%emt 0:03:45]} Bc3 {[%emt 0:06:36]} 24. bxc4 {[%emt 0:00:32]} Bxa1 {[%emt 0:00:09]} 25. cxd5 {[%emt 0:00:22]} exd5 {[%emt 0:00:20]} 26. Re1 {[%emt 0:04:45]} Bb2 {[%emt 0:02:41]} 27. Bf4 {[%emt 0:03:32]} Qc4 {[%emt 0:03:21]} 28. Qxc4 {[%emt 0:01:57]} Rxc4 {[%emt 0:00:52]} 29. Rb1 {[%emt 0:01:52]} Bxd4 {[%emt 0:00:49]} 30. Rxb7 {[%emt 0:00:12]} h5 {[%emt 0:01:21]} 31. Rd7 {[%emt 0:00:32]} Rc5 {[%emt 0:00:46]} 32. Rxa7 {[%emt 0:00:24]} Rc2 {[%emt 0:01:05]} 33. Ra8+ {[%emt 0:00:49]} Kh7 {[%emt 0:00:22]} 34. Ra4 {[%emt 0:01:11]} Rxf2+ {[%emt 0:00:56]} 35. Kh3 {[%emt 0:00:17]} Bc3 {[%emt 0:02:07]} 36. Be3 {[%emt 0:01:55]} Re2 {[%emt 0:01:09]} 37. Bf4 {[%emt 0:01:37]} Bxe5 {[%emt 0:00:50]} 38. Bxe5 {[%emt 0:00:40]} Rxe5 {[%emt 0:00:08]} 39. Rd4 {[%emt 0:00:08]} Re2 {[%emt 0:01:19]} 40. Rxd5 {[%emt 0:00:33]} Rxa2 {[%emt 0:00:13]} 41. Rxh5+ {[%emt 0:30:04]} Kg8 {[%emt 0:31:27]} 42. Rf5 {[%emt 0:01:09]} g6 {[%emt 0:01:55]} 43. Rf4 {[%emt 0:00:12]} f5 {[%emt 0:02:19]} 44. h5 {[%emt 0:00:40]} Kh7 {[%emt 0:01:00]} 45. hxg6+ {[%emt 0:01:55]} Kxg6 {[%emt 0:00:08]} 46. Rf3 {[%emt 0:01:27]} 1/2-1/2

[Event "GER-ch Youth U12W 2020"]
[Site "Willingen"]
[Date "2020.10.29"]
[Round "4.11"]
[White "Lorenz, Veronika"]
[Black "Moldovan, Tatiana"]
[Result "1-0"]
[ECO "B28"]
[WhiteElo "1273"]
[BlackElo "1516"]
[Annotator "NA RC"]
[PlyCount "69"]
[EventDate "2020.10.27"]
[EventType "swiss"]
[EventRounds "7"]
[EventCountry "GER"]
[SourceTitle "playchess.com"]
[Source "ChessBase"]
[SourceQuality "1"]
[TimeControl "40/5400+30:1800+30"]

1. e4 {[%emt 0:00:00]} c5 {[%emt 0:04:40]} 2. Nf3 {[%emt 0:00:00]} a6 {[%emt 0:00:20]} 3. c3 {[%emt 0:00:15]} e6 {[%emt 0:00:44]} 4. d4 {[%emt 0:00:14]} d5 {[%emt 0:00:18]} 5. e5 {[%emt 0:00:22]} Bd7 {[%emt 0:00:29]} 6. a3 {[%emt 0:00:24]} cxd4 {[%emt 0:00:16]} 7. cxd4 {[%emt 0:00:09]} Bb5 {[%emt 0:00:27]} 8. Bxb5+ {[%emt 0:00:15]} axb5 {[%emt 0:00:23]} 9. Nc3 {[%emt 0:00:13]} b4 {[%emt 0:00:21]} 10. Nb5 {[%emt 0:02:01]} Nc6 {[%emt 0:05:58]} 11. O-O {[%emt 0:00:28]} Qb6 {[%emt 0:01:21]} 12. Qd3 {[%emt 0:03:34]} Na7 {[%emt 0:01:02]} 13. Nxa7 {[%emt 0:04:17]} Rxa7 {[%emt 0:01:38]} 14. Bd2 {[%emt 0:01:53]} bxa3 {[%emt 0:00:55]} 15. bxa3 {[%emt 0:00:10]} Ne7 {[%emt 0:00:51]} 16. Rab1 {[%emt 0:09:00]} Qd8 {[%emt 0:03:09]} 17. Rb3 {[%emt 0:03:13]} Nc6 {[%emt 0:01:10]} 18. Rfb1 {[%emt 0:00:53]} Qc7 {[%emt 0:02:05]} 19. R1b2 {[%emt 0:05:40]} Be7 {[%emt 0:03:13]} 20. Qb1 {[%emt 0:20:18]} Nd8 {[%emt 0:03:31]} 21. Rc3 {[%emt 0:06:20]} Nc6 {[%emt 0:03:28]} 22. Rbb3 {[%emt 0:04:21]} O-O {[%emt 0:03:38]} 23. Ng5 {[%emt 0:03:19]} Bxg5 {[%emt 0:03:31]} 24. Bxg5 {[%emt 0:00:05]} Qd7 {[%emt 0:00:41]} 25. Rh3 {[%emt 0:00:24]} h6 {[%emt 0:03:36]} 26. Bxh6 {[%emt 0:01:47]} Rc8 {[%emt 0:00:34]} 27. Bxg7 {[%emt 0:01:50]} f5 {[%emt 0:03:21]} 28. exf6 {[%emt 0:06:12]} Nxd4 {[%emt 0:01:10]} 29. Qh7+ {[%emt 0:13:03]} Kf7 {[%emt 0:00:28]} 30. Qh5+ {[%emt 0:00:27]} Kg8 {[%emt 0:00:24]} 31. f7+ {[%emt 0:00:31]} Kxg7 {[%emt 0:00:22]} 32. Qg5+ {[%emt 0:00:11]} Kxf7 {[%emt 0:01:28]} 33. Rh7+ {[%emt 0:00:11]} Kf8 {[%emt 0:00:28]} 34. Qf6+ {[%emt 0:00:10]} Ke8 {[%emt 0:01:05]} 35. Qh8# 1-0

[Event "GER-ch Youth U12W 2020"]
[Site "Willingen"]
[Date "2020.10.29"]
[Round "4.12"]
[White "Stepanjan, Marianne"]
[Black "Khanbekyan, Nare"]
[Result "0-1"]
[ECO "B32"]
[WhiteElo "1351"]
[BlackElo "1329"]
[Annotator "NA RC"]
[PlyCount "120"]
[EventDate "2020.10.27"]
[EventType "swiss"]
[EventRounds "7"]
[EventCountry "GER"]
[SourceTitle "playchess.com"]
[Source "ChessBase"]
[SourceQuality "1"]
[TimeControl "40/5400+30:1800+30"]

1. e4 {[%emt 0:00:00]} c5 {[%emt 0:00:00]} 2. Nf3 {[%emt 0:00:00]} Nc6 {[%emt 0:00:00]} 3. d4 {[%emt 0:00:00]} cxd4 {[%emt 0:00:00]} 4. Nxd4 {[%emt 0:00:00]} g6 {[%emt 0:00:00]} 5. Bc4 {[%emt 0:02:42]} Bg7 {[%emt 0:01:06]} 6. Nxc6 {[%emt 0:02:24]} bxc6 {[%emt 0:00:47]} 7. Qd3 {[%emt 0:07:36]} Nf6 {[%emt 0:02:37]} 8. Nc3 {[%emt 0:00:31]} O-O {[%emt 0:01:05]} 9. Bg5 {[%emt 0:02:04]} Bb7 {[%emt 0:05:02]} 10. O-O-O {[%emt 0:04:45]} d6 {[%emt 0:02:08]} 11. f4 {[%emt 0:06:01]} Ng4 {[%emt 0:04:56]} 12. Rdf1 {[%emt 0:05:48]} Qb6 {[%emt 0:03:56]} 13. Qe2 {[%emt 0:14:01]} Qe3+ {[%emt 0:06:36]} 14. Kb1 {[%emt 0:04:33]} Qxe2 {[%emt 0:02:50]} 15. Bxe2 {[%emt 0:00:36]} Ne3 {[%emt 0:00:48]} 16. Rf3 {[%emt 0:02:13]} Nxg2 {[%emt 0:02:41]} 17. Rg1 {[%emt 0:04:25]} f6 {[%emt 0:00:41]} 18. Bxf6 {[%emt 0:00:26]} Nxf4 {[%emt 0:01:37]} 19. Bxe7 {[%emt 0:12:20]} Nxe2 {[%emt 0:01:05]} 20. Bxf8 {[%emt 0:06:11]} Nxg1 {[%emt 0:00:19]} 21. Rf1 {[%emt 0:00:51]} Rxf8 {[%emt 0:00:36]} 22. Rxg1 {[%emt 0:00:04]} d5 {[%emt 0:01:07]} 23. exd5 cxd5 {[%emt 0:00:07]} 24. Nb5 {[%emt 0:00:38]} Ba6 {[%emt 0:00:20]} 25. Nc7 {[%emt 0:00:37]} Bd4 {[%emt 0:00:33]} 26. Rd1 {[%emt 0:00:57]} Rf1 {[%emt 0:01:06]} 27. Rxf1 {[%emt 0:00:11]} Bxf1 {[%emt 0:00:04]} 28. Nxd5 {[%emt 0:00:02]} Be5 {[%emt 0:00:28]} 29. h4 {[%emt 0:02:56]} Bg3 {[%emt 0:00:36]} 30. h5 {[%emt 0:00:43]} Kf7 {[%emt 0:00:34]} 31. hxg6+ {[%emt 0:02:44]} hxg6 {[%emt 0:00:08]} 32. Ne3 {[%emt 0:02:57]} Bh3 {[%emt 0:00:26]} 33. c4 {[%emt 0:01:13]} g5 {[%emt 0:00:11]} 34. Kc2 {[%emt 0:00:59]} g4 {[%emt 0:00:18]} 35. Kd3 {[%emt 0:01:34]} Bh2 {[%emt 0:00:24]} 36. Ke2 {[%emt 0:00:28]} Kf6 {[%emt 0:00:40]} 37. Kf2 {[%emt 0:02:22]} Ke5 {[%emt 0:00:18]} 38. b3 {[%emt 0:02:17]} Kf4 {[%emt 0:00:31]} 39. Nd5+ {[%emt 0:04:51]} Ke4 {[%emt 0:00:16]} 40. Ne3 {[%emt 0:00:49]} g3+ {[%emt 0:00:23]} 41. Ke2 {[%emt 0:30:46]} g2 {[%emt 0:30:36]} 42. Nxg2 {[%emt 0:00:05]} Bxg2 {[%emt 0:00:13]} 43. c5 {[%emt 0:00:17]} Kd5 {[%emt 0:00:22]} 44. b4 {[%emt 0:00:05]} Kc6 {[%emt 0:00:18]} 45. a4 {[%emt 0:00:04]} Bc7 {[%emt 0:00:24]} 46. Kd3 {[%emt 0:00:38]} Be5 {[%emt 0:01:13]} 47. Kc4 {[%emt 0:00:31]} Bd5+ {[%emt 0:00:23]} 48. Kd3 {[%emt 0:00:31]} Bb3 {[%emt 0:00:03]} 49. Ke4 {[%emt 0:01:07]} Bc3 {[%emt 0:00:35]} 50. a5 {[%emt 0:00:45]} Bxb4 {[%emt 0:00:16]} 51. a6 {[%emt 0:00:21]} Kxc5 {[%emt 0:00:08]} 52. Kd3 {[%emt 0:00:35]} Bc4+ {[%emt 0:00:04]} 53. Kc2 {[%emt 0:00:09]} Bxa6 {[%emt 0:00:06]} 54. Kb3 {[%emt 0:00:06]} Bc4+ {[%emt 0:00:10]} 55. Ka4 {[%emt 0:00:14]} Bb5+ {[%emt 0:00:07]} 56. Kb3 {[%emt 0:00:06]} a5 {[%emt 0:00:08]} 57. Kb2 {[%emt 0:03:24]} a4 {[%emt 0:00:14]} 58. Kb1 {[%emt 0:01:21]} a3 {[%emt 0:00:15]} 59. Ka2 {[%emt 0:00:22]} Kc4 {[%emt 0:00:22]} 60. Ka1 {[%emt 0:01:15]} Kb3 0-1